fUSD/lending_fUSD_20250123
["ID","MTS","AMOUNT","RATE_DAILY","PERIOD"]
[350069071,1737598261340,-1825.68,0.00020547,2]
[350069072,1737598261350,-500.0,0.00020547,2]
[350069073,1737598261359,-1665.25,0.00020547,2]
[350069074,1737598261369,-1562.79,0.00020547,2]
[350069075,1737598261378,-3410.84,0.00020547,2]
[350069076,1737598261387,-781.49,0.00020547,2]
[350069077,1737598261397,-521.94,0.00020547,2]
[350069078,1737598261406,-715.04,0.00020547,2]
[350069079,1737598261415,-828.54,0.00020547,2]
[350069080,1737598261425,-1023.25,0.00020547,2]
[350069081,1737598261434,-1545.44,0.00020547,2]
[350069082,1737598261443,-999.21,0.00020547,2]
[350069083,1737598261452,-595.45,0.00020547,2]
[350069084,1737598261462,-500.0,0.00020547,2]
[350069085,1737598261471,-941.03,0.00020547,2]
[350069086,1737598261480,-1139.26,0.00020547,2]
[350069087,1737598261490,-1436.85,0.00020547,2]
[350069088,1737598261500,-1885.46,0.00020547,2]
[350069089,1737598261510,-500.0,0.00020547,2]
[350069090,1737598261525,-500.0,0.00020547,2]
[350069091,1737598261535,-508.75,0.00020547,2]
[350069092,1737598261546,-697.25,0.00020547,2]
[350069093,1737598261555,-1204.01,0.00020547,2]
[350069094,1737598261571,-1170.11,0.00020547,2]
[350069095,1737598261581,-2156.54,0.00020547,2]
[350069096,1737598261590,-954.95,0.00020547,2]
[350069097,1737598261600,-500.0,0.00020547,2]
[350069098,1737598261609,-2857.56,0.00020547,2]
[350069099,1737598261619,-500.0,0.00020547,2]
[350069100,1737598261628,-500.0,0.00020547,2]
[350069101,1737598261638,-1781.26,0.00020547,2]
[350069102,1737598261648,-613.33,0.00020547,2]
[350069103,1737598261658,-500.0,0.00020547,2]
[350069104,1737598261668,-832.7,0.00020547,2]
[350069105,1737598261677,-1000.0,0.00020547,2]
[350069106,1737598261686,-709.55,0.00020547,2]
[350069107,1737598261696,-534.8,0.00020547,2]
[350069108,1737598261705,-1002.47,0.00020547,2]
[350069109,1737598261715,-902.21,0.00020547,2]
[350069110,1737598261724,-857.13,0.00020547,2]
[350069111,1737598261733,-500.0,0.00020547,2]
[350069112,1737598261743,-825.39,0.00020547,2]
[350069113,1737598261752,-1658.23,0.00020547,2]
[350069114,1737598261764,-1634.67,0.00020547,2]
[350069115,1737598261773,-553.31,0.00020547,2]
[350069116,1737598261784,-271.36297565,0.00020547,2]
[350069117,1737598261793,-1490.03,0.00020547,2]
[350069118,1737598261803,-500.0,0.00020547,2]
[350069119,1737598261812,-2233.11,0.00020547,2]
[350069120,1737598261822,-1027.05,0.00020547,2]
[350069121,1737598261832,-770.23,0.00020547,2]
[350069122,1737598261842,-520.02,0.00020547,2]
[350069123,1737598261859,-500.0,0.00020547,2]
[350069124,1737598261869,-1698.92,0.00020547,2]
[350069125,1737598261879,-683.74,0.00020547,2]
[350069126,1737598261890,-518.7662952,0.00020547,2]
[350069127,1737598261900,-1618.77,0.00020547,2]
[350069128,1737598261910,-265.05465492,0.00020547,2]
[350069129,1737598261920,-439.78443345,0.00020547,2]
[350069130,1737598261931,-1198.6,0.00020547,2]
[350069131,1737598261940,-500.0,0.00020547,2]
[350069132,1737598261949,-500.0,0.00020547,2]
[350069133,1737598261959,-661.89,0.00020547,2]
[350069134,1737598261968,-500.0,0.00020547,2]
[350069135,1737598261977,-2270.26,0.00020547,2]
[350069136,1737598261986,-638.8,0.00020547,2]
[350069137,1737598261995,-500.0,0.00020547,2]
[350069138,1737598262004,-500.0,0.00020547,2]
[350069139,1737598262014,-500.0,0.00020547,2]
[350069140,1737598262024,-500.0,0.00020547,2]
[350069141,1737598262033,-500.0,0.00020547,2]
[350069142,1737598262043,-500.0,0.00020547,2]
[350069143,1737598262052,-500.0,0.00020547,2]
[350069144,1737598262061,-1043.82,0.00020547,2]
[350069145,1737598262071,-905.62,0.00020547,2]
[350069146,1737598262080,-500.0,0.00020547,2]
[350069147,1737598262089,-500.0,0.00020547,2]
[350069148,1737598262098,-624.19,0.00020547,2]
[350069149,1737598262108,-795.77,0.00020547,2]
[350069150,1737598262117,-500.0,0.00020547,2]
[350069151,1737598262126,-500.0,0.00020547,2]
[350069152,1737598262135,-161.542149,0.00020547,2]
[350069153,1737598262146,-500.0,0.00020547,2]
[350069154,1737598262155,-500.0,0.00020547,2]
[350069155,1737598262164,-500.0,0.00020547,2]
[350069156,1737598262173,-652.67,0.00020547,2]
[350069157,1737598262182,-1966.42,0.00020547,2]
[350069158,1737598262190,-1474.72,0.00020547,2]
[350069159,1737598262199,-500.0,0.00020547,2]
[350069160,1737598262208,-1114.82,0.00020547,2]
[350069161,1737598262217,-839.45,0.00020547,2]
[350069162,1737598262226,-695.67,0.00020547,2]
[350069163,1737598262235,-500.0,0.00020547,2]
[350069164,1737598262244,-500.0,0.00020547,2]
[350069165,1737598262253,-780.12,0.00020547,2]
[350069166,1737598262264,-1160.06,0.00020547,2]
[350069167,1737598262273,-500.0,0.00020547,2]
[350069168,1737598262283,-500.0,0.00020547,2]
[350069169,1737598262292,-500.0,0.00020547,2]
[350069170,1737598262301,-1941.87,0.00020547,2]
[350069171,1737598262310,-500.0,0.00020547,2]
[350069172,1737598262319,-629.0,0.00020547,2]
[350069173,1737598262328,-500.0,0.00020547,2]
[350069174,1737598262337,-1951.20416786,0.00020555,2]
[350069175,1737598262346,-2504.49,0.0002064,2]
[350069176,1737598262355,-4001.85684245,0.00020646,2]
[350069177,1737598262364,-1951.20416786,0.00020659,2]
[350069178,1737598262373,-30000.0,0.00020715,2]
[350069179,1737598262382,-340.00785587,0.00020721,2]
[350069180,1737598262390,-1389.87327567,0.00020722,2]
[350069181,1737598262399,-646.87923689,0.0002074,2]
[350069182,1737598262408,-1951.20416786,0.00020762,2]
[350069183,1737598262416,-177.13,0.00020773,2]
[350069184,1737598262425,-780.49329755,0.00020785,2]
[350069185,1737598262434,-337.3308872,0.00020786,2]
[350069186,1737598262443,-15976.04159581,0.00020792,2]
[350069187,1737598262452,-1163.66218399,0.00020793,2]
[350069188,1737598262461,-15976.04159581,0.00020794,2]
[350069189,1737598262470,-1163.66218399,0.00020794,2]
[350069190,1737598262479,-285.94765076,0.00020794,2]
[350069191,1737598262488,-1163.66218399,0.00020798,2]
[350069192,1737598262497,-1604.19069631,0.00020799,2]
[350069193,1737598262507,-10476.03350101,0.00020804,2]
[350069194,1737598262518,-234.32944771,0.00020806,2]
[350069195,1737598262527,-234.32944771,0.00020807,2]
[350069196,1737598262536,-337.3308872,0.0002081,2]
[350069197,1737598262546,-518.7240377,0.00020814,2]
[350069198,1737598262555,-337.3308872,0.00020815,2]
[350069199,1737598262569,-10476.03350101,0.00020818,2]
[350069200,1737598262578,-1443.16962273,0.00020819,2]
[350069201,1737598262587,-15976.04159581,0.00020819,2]
[350069202,1737598262596,-464.187533,0.00020821,2]
[350069203,1737598262606,-500.0,0.00020821,2]
[350069204,1737598262615,-500.0,0.00020821,2]
[350069205,1737598262624,-500.0,0.00020821,2]
[350069206,1737598262634,-500.0,0.00020821,2]
[350069207,1737598262646,-532.52,0.00020821,2]
[350069208,1737598262656,-500.0,0.00020821,2]
[350069209,1737598262666,-500.0,0.00020821,2]
[350069210,1737598262676,-1208.62,0.00020821,2]
[350069211,1737598262687,-500.0,0.00020821,2]
[350069212,1737598262696,-500.0,0.00020821,2]
[350069213,1737598262705,-500.0,0.00020821,2]
[350069214,1737598262714,-500.0,0.00020821,2]
[350069215,1737598262724,-446.68,0.00020821,2]
[350069216,1737598262734,-500.0,0.00020821,2]
[350069217,1737598262743,-500.0,0.00020821,2]
[350069218,1737598262753,-500.0,0.00020821,2]
[350069219,1737598262764,-500.0,0.00020821,2]
[350069220,1737598262774,-500.0,0.00020821,2]
[350069221,1737598262783,-500.0,0.00020821,2]
[350069222,1737598262792,-591.65,0.00020821,2]
[350069223,1737598262802,-500.0,0.00020821,2]
[350069224,1737598262811,-598.59,0.00020821,2]
[350069225,1737598262820,-500.0,0.00020821,2]
[350069226,1737598262830,-500.0,0.00020821,2]
[350069227,1737598262839,-511.06,0.00020821,2]
[350069228,1737598262849,-204.35101384,0.00020821,2]
[350069229,1737598262858,-446.85524106,0.00020821,2]
[350069230,1737598262867,-500.0,0.00020821,2]
[350069231,1737598262876,-500.0,0.00020821,2]
[350069232,1737598262886,-500.0,0.00020821,2]
[350069233,1737598262896,-626.68,0.00020821,2]
[350069234,1737598262905,-569.54,0.00020821,2]
[350069235,1737598262914,-500.0,0.00020821,2]
[350069236,1737598262923,-500.0,0.00020821,2]
[350069237,1737598262932,-500.0,0.00020821,2]
[350069238,1737598262942,-669.91,0.00020821,2]
[350069239,1737598262951,-590.81,0.00020821,2]
[350069240,1737598262960,-500.0,0.00020821,2]
[350069241,1737598262969,-539.23,0.00020821,2]
[350069242,1737598262978,-500.0,0.00020821,2]
[350069243,1737598262987,-609.49,0.00020821,2]
[350069244,1737598262997,-652.2,0.00020821,2]
[350069245,1737598263007,-500.0,0.00020821,2]
[350069246,1737598263017,-500.0,0.00020821,2]
[350069247,1737598263026,-500.0,0.00020821,2]
[350069248,1737598263036,-500.0,0.00020821,2]
[350069249,1737598263047,-500.0,0.00020821,2]
[350069250,1737598263056,-560.55,0.00020821,2]
[350069251,1737598263065,-500.0,0.00020821,2]
[350069252,1737598263074,-500.0,0.00020821,2]
[350069253,1737598263083,-500.0,0.00020821,2]
[350069254,1737598263093,-521.08904618,0.00020821,2]
[350069255,1737598263102,-500.0,0.00020821,2]
[350069256,1737598263112,-585.91,0.00020821,2]
[350069257,1737598263122,-500.0,0.00020821,2]
[350069258,1737598263131,-500.0,0.00020821,2]
[350069259,1737598263140,-500.0,0.00020821,2]
[350069260,1737598263150,-500.0,0.00020821,2]
[350069261,1737598263159,-760.92,0.00020821,2]
[350069262,1737598263168,-500.0,0.00020821,2]
[350069263,1737598263178,-500.0,0.00020821,2]
[350069264,1737598263189,-500.0,0.00020821,2]
[350069265,1737598263198,-709.5,0.00020821,2]
[350069266,1737598263207,-328.54667689,0.00020821,2]
[350069267,1737598263216,-500.0,0.00020821,2]
[350069268,1737598263225,-783.44,0.00020821,2]
[350069269,1737598263235,-500.0,0.00020821,2]
[350069270,1737598263244,-734.61,0.00020821,2]
[350069271,1737598263253,-983.91,0.00020821,2]
[350069272,1737598263264,-194.56,0.00020821,2]
[350069273,1737598263274,-1021.08,0.00020821,2]
[350069274,1737598263283,-595.13,0.00020821,2]
[350069275,1737598263292,-1861.17,0.00020821,2]
[350069276,1737598263301,-2273.74,0.00020821,2]
[350069277,1737598263310,-500.0,0.00020821,2]
[350069278,1737598263320,-926.57,0.00020821,2]
[350069279,1737598263329,-457.14314632,0.00020821,2]
[350069280,1737598263338,-500.0,0.00020821,2]
[350069281,1737598263348,-4005.95,0.00020821,2]
[350069282,1737598263357,-500.0,0.00020821,2]
[350069283,1737598263367,-934.73,0.00020821,2]
[350069284,1737598263377,-500.0,0.00020821,2]
[350069285,1737598263387,-1366.9,0.00020821,2]
[350069286,1737598263397,-638.91,0.00020821,2]
[350069287,1737598263407,-500.0,0.00020821,2]
[350069288,1737598263416,-500.0,0.00020821,2]
[350069289,1737598263426,-701.57,0.00020821,2]
[350069290,1737598263435,-500.0,0.00020821,2]
[350069291,1737598263444,-780.6,0.00020821,2]
[350069292,1737598263454,-1079.5,0.00020821,2]
[350069293,1737598263463,-500.0,0.00020821,2]
[350069294,1737598263472,-500.0,0.00020821,2]
[350069295,1737598263482,-2807.93,0.00020821,2]
[350069296,1737598263491,-1009.59,0.00020821,2]
[350069297,1737598263500,-501.49,0.00020821,2]
[350069298,1737598263511,-1169.11,0.00020821,2]
[350069299,1737598263524,-500.0,0.00020821,2]
[350069300,1737598263534,-636.54,0.00020821,2]
[350069301,1737598263543,-958.43,0.00020821,2]
[350069302,1737598263553,-544.56,0.00020821,2]
[350069303,1737598263566,-580.23,0.00020821,2]
[350069304,1737598263575,-1894.86,0.00020821,2]
[350069305,1737598263585,-1614.96,0.00020821,2]
[350069306,1737598263594,-500.0,0.00020821,2]
[350069307,1737598263605,-1825.68,0.00020821,2]
[350069308,1737598263615,-500.0,0.00020821,2]
[350069309,1737598263624,-1665.25,0.00020821,2]
[350069310,1737598263634,-1562.79,0.00020821,2]
[350069311,1737598263645,-3410.84,0.00020821,2]
[350069312,1737598263777,-781.49,0.00020821,2]
[350069313,1737598263787,-521.94,0.00020821,2]
[350069314,1737598263796,-715.04,0.00020821,2]
[350069315,1737598263806,-828.54,0.00020821,2]
[350069316,1737598263816,-1023.25,0.00020821,2]
[350069317,1737598263826,-1545.44,0.00020821,2]
[350069318,1737598263835,-999.21,0.00020821,2]
[350069319,1737598263845,-595.45,0.00020821,2]
[350069320,1737598263855,-500.0,0.00020821,2]
[350069321,1737598263865,-941.03,0.00020821,2]
[350069322,1737598263874,-1139.26,0.00020821,2]
[350069323,1737598263883,-1436.85,0.00020821,2]
[350069324,1737598263893,-1885.46,0.00020821,2]
[350069325,1737598263903,-500.0,0.00020821,2]
[350069326,1737598263913,-500.0,0.00020821,2]
[350069327,1737598263923,-508.75,0.00020821,2]
[350069328,1737598263933,-697.25,0.00020821,2]
[350069329,1737598263943,-1204.01,0.00020821,2]
[350069330,1737598263952,-1170.11,0.00020821,2]
[350069331,1737598263962,-2156.54,0.00020821,2]
[350069332,1737598263971,-954.95,0.00020821,2]
[350069333,1737598263981,-500.0,0.00020821,2]
[350069334,1737598263990,-2857.56,0.00020821,2]
[350069335,1737598263999,-500.0,0.00020821,2]
[350069336,1737598264010,-500.0,0.00020821,2]
[350069337,1737598264020,-1781.26,0.00020821,2]
[350069338,1737598264030,-613.33,0.00020821,2]
[350069339,1737598264039,-500.0,0.00020821,2]
[350069340,1737598264049,-832.7,0.00020821,2]
[350069341,1737598264059,-1000.0,0.00020821,2]
[350069342,1737598264068,-709.55,0.00020821,2]
[350069343,1737598264078,-534.8,0.00020821,2]
[350069344,1737598264087,-902.21,0.00020821,2]
[350069345,1737598264097,-1002.47,0.00020821,2]
[350069346,1737598264106,-857.13,0.00020821,2]
[350069347,1737598264116,-500.0,0.00020821,2]
[350069348,1737598264127,-825.39,0.00020821,2]
[350069349,1737598264137,-1658.23,0.00020821,2]
[350069350,1737598264147,-1634.67,0.00020821,2]
[350069351,1737598264157,-553.31,0.00020821,2]
[350069352,1737598264167,-1490.03,0.00020821,2]
[350069353,1737598264176,-619.79276718,0.00020821,2]
[350069354,1737598264186,-2233.11,0.00020821,2]
[350069355,1737598264195,-1027.05,0.00020821,2]
[350069356,1737598264205,-770.23,0.00020821,2]
[350069357,1737598264214,-520.02,0.00020821,2]
[350069358,1737598264223,-500.0,0.00020821,2]
[350069359,1737598264232,-1698.92,0.00020821,2]
[350069360,1737598264241,-683.74,0.00020821,2]
[350069361,1737598264251,-1618.77,0.00020821,2]
[350069362,1737598264261,-1198.6,0.00020821,2]
[350069363,1737598264270,-500.0,0.00020821,2]
[350069364,1737598264279,-570.84015294,0.00020821,2]
[350069365,1737598264289,-661.89,0.00020821,2]
[350069366,1737598264299,-500.0,0.00020821,2]
[350069367,1737598264308,-2270.26,0.00020821,2]
[350069368,1737598264318,-638.8,0.00020821,2]
[350069369,1737598264328,-500.0,0.00020821,2]
[350069370,1737598264338,-500.0,0.00020821,2]
[350069371,1737598264348,-500.0,0.00020821,2]
[350069372,1737598264359,-500.0,0.00020821,2]
[350069373,1737598264369,-500.0,0.00020821,2]
[350069374,1737598264380,-500.0,0.00020821,2]
[350069375,1737598264389,-500.0,0.00020821,2]
[350069376,1737598264399,-1043.82,0.00020821,2]
[350069377,1737598264408,-905.62,0.00020821,2]
[350069378,1737598264417,-500.0,0.00020821,2]
[350069379,1737598264427,-500.0,0.00020821,2]
[350069380,1737598264436,-624.19,0.00020821,2]
[350069381,1737598264446,-500.0,0.00020821,2]
[350069382,1737598264455,-795.77,0.00020821,2]
[350069383,1737598264465,-500.0,0.00020821,2]
[350069384,1737598264474,-500.0,0.00020821,2]
[350069385,1737598264484,-500.0,0.00020821,2]
[350069386,1737598264494,-652.67,0.00020821,2]
[350069387,1737598264503,-1966.42,0.00020821,2]
[350069388,1737598264515,-1474.72,0.00020821,2]
[350069389,1737598264526,-500.0,0.00020821,2]
[350069390,1737598264536,-839.45,0.00020821,2]
[350069391,1737598264545,-1114.82,0.00020821,2]
[350069392,1737598264555,-695.67,0.00020821,2]
[350069393,1737598264570,-392.33791065,0.00020821,2]
[350069394,1737598264580,-365.07208135,0.00020821,2]
[350069395,1737598264589,-780.12,0.00020821,2]
[350069396,1737598264599,-1160.06,0.00020821,2]
[350069397,1737598264610,-500.0,0.00020821,2]
[350069398,1737598264619,-500.0,0.00020821,2]
[350069399,1737598264630,-1941.87,0.00020821,2]
[350069400,1737598264639,-500.0,0.00020821,2]
[350069401,1737598264649,-629.0,0.00020821,2]
[350069402,1737598264658,-289.64,0.00020821,2]
[350069403,1737598264668,-1163.66218399,0.00020824,2]
[350069404,1737598264678,-780.49329755,0.00020829,2]
[350069405,1737598264688,-518.7240377,0.0002083,2]
[350069406,1737598264699,-1163.66218399,0.0002083,2]
[350069407,1737598264708,-2507.56,0.00020833,2]
[350069408,1737598264718,-15976.04159581,0.0002084,2]
[350069409,1737598264727,-234.32944771,0.00020842,2]
[350069410,1737598264736,-15976.04159581,0.00020843,2]
[350069411,1737598264746,-1443.16962273,0.00020847,2]
[350069412,1737598264756,-234.32944771,0.00020856,2]
[350069413,1737598264766,-518.7240377,0.00020856,2]
[350069414,1737598264776,-38901.77170285,0.00020861,2]
[350069415,1737598264786,-38901.77170285,0.00020862,2]
[350069416,1737598264796,-285.94765076,0.00020863,2]
[350069417,1737598264806,-1604.19069631,0.00020863,2]
[350069418,1737598264815,-1951.20416786,0.00020866,2]
[350069419,1737598264824,-1604.19069631,0.00020868,2]
[350069420,1737598264834,-1443.16962273,0.00020872,2]
[350069421,1737598264844,-38901.77170285,0.00020894,2]
[350069422,1737598264854,-518.7240377,0.000209,2]
[350069423,1737598264863,-161.136,0.000209,2]
[350069424,1737598264873,-2300.0,0.000209,7]
[350069425,1737598264882,-780.49329755,0.000209,2]
[350069426,1737598264893,-10476.03350101,0.00020903,2]
[350069427,1737598264902,-337.3308872,0.00020915,2]
[350069428,1737598264911,-340.00785583,0.00020918,2]
[350069429,1737598264921,-285.94765076,0.00020921,2]
[350069430,1737598264931,-38901.77170285,0.00020923,2]
[350069431,1737598264941,-780.49329755,0.00020925,2]
[350069432,1737598264951,-518.7240377,0.00020928,2]
[350069433,1737598264960,-337.3308872,0.00020929,2]
[350069434,1737598264969,-38901.77170285,0.0002093,2]
[350069435,1737598264978,-200.0,0.00020931,2]
[350069436,1737598264988,-234.32944771,0.00020931,2]
[350069437,1737598265000,-1443.16962273,0.00020934,2]
[350069438,1737598265010,-780.49329755,0.00020935,2]
[350069439,1737598265020,-1443.16962273,0.00020935,2]
[350069440,1737598265030,-200.0,0.00020937,2]
[350069441,1737598265039,-200.0,0.00020937,2]
[350069442,1737598265049,-1604.19069631,0.00020938,2]
[350069443,1737598265058,-10476.03350101,0.0002094,2]
[350069444,1737598265068,-1604.19069631,0.0002094,2]
[350069445,1737598265078,-10476.03350101,0.00020941,2]
[350069446,1737598265087,-285.94765076,0.00020944,2]
[350069447,1737598265096,-285.94765076,0.00020944,2]
[350069448,1737598265105,-2504.5,0.0002095,2]
[350069449,1737598265115,-4001.85684245,0.00020959,2]
[350069450,1737598265125,-175.87843106,0.00020959,2]
[350069451,1737598265134,-1951.20416786,0.00020969,2]
[350069452,1737598265143,-2507.56,0.00020978,2]
[350069453,1737598265154,-2091.0,0.00021,2]
[350069454,1737598265163,-1951.20416786,0.00021072,2]
[350069455,1737598265171,-464.187533,0.00021095,2]
[350069456,1737598265180,-500.0,0.00021095,2]
[350069457,1737598265189,-220.25649287,0.00021095,2]
[350069458,1737598265198,-500.0,0.00021095,2]
[350069459,1737598265207,-500.0,0.00021095,2]
[350069460,1737598265218,-532.52,0.00021095,2]
[350069461,1737598265229,-500.0,0.00021095,2]
[350069462,1737598265239,-500.0,0.00021095,2]
[350069463,1737598265250,-1208.62,0.00021095,2]
[350069464,1737598265260,-500.0,0.00021095,2]
[350069465,1737598265269,-500.0,0.00021095,2]
[350069466,1737598265279,-500.0,0.00021095,2]
[350069467,1737598265288,-500.0,0.00021095,2]
[350069468,1737598265299,-500.0,0.00021095,2]
[350069469,1737598265309,-479.42519962,0.00021095,2]
[350069470,1737598265322,-500.0,0.00021095,2]
[350069471,1737598265333,-500.0,0.00021095,2]
[350069472,1737598265342,-500.0,0.00021095,2]
[350069473,1737598265352,-211.06109955,0.00021095,2]
[350069474,1737598265363,-591.65,0.00021095,2]
[350069475,1737598265372,-488.68097831,0.00021095,2]
[350069476,1737598265381,-598.59,0.00021095,2]
[350069477,1737598265390,-490.42211074,0.00021095,2]
[350069478,1737598265399,-500.0,0.00021095,2]
[350069479,1737598265408,-511.06,0.00021095,2]
[350069480,1737598265417,-519.24763401,0.00021095,2]
[350069481,1737598265426,-500.0,0.00021095,2]
[350069482,1737598265435,-289.06687656,0.00021095,2]
[350069483,1737598265444,-626.68,0.00021095,2]
[350069484,1737598265453,-569.54,0.00021095,2]
[350069485,1737598265462,-500.0,0.00021095,2]
[350069486,1737598265471,-500.0,0.00021095,2]
[350069487,1737598265480,-500.0,0.00021095,2]
[350069488,1737598265489,-669.91,0.00021095,2]
[350069489,1737598265499,-590.81,0.00021095,2]
[350069490,1737598265509,-500.0,0.00021095,2]
[350069491,1737598265523,-539.23,0.00021095,2]
[350069492,1737598265532,-500.0,0.00021095,2]
[350069493,1737598265542,-609.49,0.00021095,2]
[350069494,1737598265552,-652.2,0.00021095,2]
[350069495,1737598265564,-500.0,0.00021095,2]
[350069496,1737598265574,-500.0,0.00021095,2]
[350069497,1737598265583,-500.0,0.00021095,2]
[350069498,1737598265592,-500.0,0.00021095,2]
[350069499,1737598265601,-500.0,0.00021095,2]
[350069500,1737598265611,-560.55,0.00021095,2]
[350069501,1737598265620,-500.0,0.00021095,2]
[350069502,1737598265629,-500.0,0.00021095,2]
[350069503,1737598265639,-500.0,0.00021095,2]
[350069504,1737598265648,-500.0,0.00021095,2]
[350069505,1737598265657,-585.91,0.00021095,2]
[350069506,1737598265667,-500.0,0.00021095,2]
[350069507,1737598265676,-500.0,0.00021095,2]
[350069508,1737598265685,-500.0,0.00021095,2]
[350069509,1737598265694,-500.0,0.00021095,2]
[350069510,1737598265704,-760.92,0.00021095,2]
[350069511,1737598265713,-500.0,0.00021095,2]
[350069512,1737598265722,-524.7123298,0.00021095,2]
[350069513,1737598265732,-500.0,0.00021095,2]
[350069514,1737598265742,-709.5,0.00021095,2]
[350069515,1737598265752,-500.0,0.00021095,2]
[350069516,1737598265763,-783.44,0.00021095,2]
[350069517,1737598265772,-500.0,0.00021095,2]
[350069518,1737598265782,-734.61,0.00021095,2]
[350069519,1737598265792,-983.91,0.00021095,2]
[350069520,1737598265801,-1021.08,0.00021095,2]
[350069521,1737598265811,-595.13,0.00021095,2]
[350069522,1737598265822,-1861.17,0.00021095,2]
[350069523,1737598265831,-2273.74,0.00021095,2]
[350069524,1737598265846,-500.0,0.00021095,2]
[350069525,1737598265856,-926.57,0.00021095,2]
[350069526,1737598265866,-500.0,0.00021095,2]
[350069527,1737598265876,-4005.95,0.00021095,2]
[350069528,1737598265886,-500.0,0.00021095,2]
[350069529,1737598265896,-934.73,0.00021095,2]
[350069530,1737598265907,-500.0,0.00021095,2]
[350069531,1737598265917,-1366.9,0.00021095,2]
[350069532,1737598265927,-638.91,0.00021095,2]
[350069533,1737598265938,-500.0,0.00021095,2]
[350069534,1737598265948,-500.0,0.00021095,2]
[350069535,1737598265958,-701.57,0.00021095,2]
[350069536,1737598265969,-500.0,0.00021095,2]
[350069537,1737598265979,-780.6,0.00021095,2]
[350069538,1737598265991,-1079.5,0.00021095,2]
[350069539,1737598266001,-500.0,0.00021095,2]
[350069540,1737598266121,-500.0,0.00021095,2]
[350069541,1737598266131,-2807.93,0.00021095,2]
[350069542,1737598266140,-1009.59,0.00021095,2]
[350069543,1737598266149,-501.49,0.00021095,2]
[350069544,1737598266158,-1169.11,0.00021095,2]
[350069545,1737598266167,-500.0,0.00021095,2]
[350069546,1737598266176,-636.54,0.00021095,2]
[350069547,1737598266185,-958.43,0.00021095,2]
[350069548,1737598266194,-544.56,0.00021095,2]
[350069549,1737598266203,-580.23,0.00021095,2]
[350069550,1737598266212,-1894.86,0.00021095,2]
[350069551,1737598266222,-1614.96,0.00021095,2]
[350069552,1737598266231,-500.0,0.00021095,2]
[350069553,1737598266240,-1825.68,0.00021095,2]
[350069554,1737598266249,-500.0,0.00021095,2]
[350069555,1737598266258,-1665.25,0.00021095,2]
[350069556,1737598266268,-1562.79,0.00021095,2]
[350069557,1737598266277,-3410.84,0.00021095,2]
[350069558,1737598266287,-781.49,0.00021095,2]
[350069559,1737598266296,-521.94,0.00021095,2]
[350069560,1737598266305,-715.04,0.00021095,2]
[350069561,1737598266315,-828.54,0.00021095,2]
[350069562,1737598266324,-1023.25,0.00021095,2]
[350069563,1737598266333,-1545.44,0.00021095,2]
[350069564,1737598266342,-999.21,0.00021095,2]
[350069565,1737598266352,-595.45,0.00021095,2]
[350069566,1737598266361,-500.0,0.00021095,2]
[350069567,1737598266371,-941.03,0.00021095,2]
[350069568,1737598266381,-1139.26,0.00021095,2]
[350069569,1737598266391,-1436.85,0.00021095,2]
[350069570,1737598266401,-1885.46,0.00021095,2]